[Event "Titled Tuesday Blitz March 01 Early 2022"]
[White "P., Komal Kishore"]
[Black "Costachi, Mihnea"]
[WhiteFideId "5016703"]
[BlackFideId "1217518"]
[WhiteElo "2084"]
[BlackElo "2464"]
[Result "0-1"]
[Round "05"]
[TimeControl "180+1"]
[Date "2022.03.01"]
[WhiteClock "0:00:01"]
[BlackClock "0:00:58"]

1. e4 {[%clk 0:02:57]}  c5 {[%clk 0:02:58]} 2. Nf3 {[%clk 0:02:55]}  Nc6 {[%clk 0:02:59]} 3. Bb5 {[%clk 0:02:54]}  g6 {[%clk 0:02:56]} 4. O-O {[%clk 0:02:52]}  Bg7 {[%clk 0:02:53]} 5. c3 {[%clk 0:02:52]}  Nf6 {[%clk 0:02:43]} 6. e5 {[%clk 0:02:49]}  Nd5 {[%clk 0:02:44]} 7. d4 {[%clk 0:02:48]}  cxd4 {[%clk 0:02:31]} 8. cxd4 {[%clk 0:02:47]}  O-O {[%clk 0:02:31]} 9. Nc3 {[%clk 0:02:45]}  Nxc3 {[%clk 0:02:30]} 10. bxc3 {[%clk 0:02:45]}  d6 {[%clk 0:02:30]} 11. exd6 {[%clk 0:02:40]}  Qxd6 {[%clk 0:02:29]} 12. a4 {[%clk 0:02:31]}  Bf5 {[%clk 0:02:23]} 13. Re1 {[%clk 0:02:27]}  Rac8 {[%clk 0:02:23]} 14. Ba3 {[%clk 0:02:24]}  Qd5 {[%clk 0:02:21]} 15. Rc1 {[%clk 0:01:25]}  Rfe8 {[%clk 0:02:16]} 16. c4 {[%clk 0:01:19]}  Qd8 {[%clk 0:02:14]} 17. d5 {[%clk 0:01:11]}  a6 {[%clk 0:01:47]} 18. dxc6 {[%clk 0:01:10]}  axb5 {[%clk 0:01:48]} 19. Qxd8 {[%clk 0:01:06]}  Rcxd8 {[%clk 0:01:48]} 20. cxb5 {[%clk 0:01:01]}  bxc6 {[%clk 0:01:47]} 21. bxc6 {[%clk 0:00:56]}  e5 {[%clk 0:01:46]} 22. c7 {[%clk 0:00:33]}  Ra8 {[%clk 0:01:46]} 23. Bd6 {[%clk 0:00:26]}  e4 {[%clk 0:01:45]} 24. Nh4 {[%clk 0:00:20]}  Bd7 {[%clk 0:01:45]} 25. g3 {[%clk 0:00:16]}  Rxa4 {[%clk 0:01:43]} 26. Rb1 {[%clk 0:00:15]}  Rd4 {[%clk 0:01:32]} 27. Rb8 {[%clk 0:00:14]}  Bc8 {[%clk 0:01:33]} 28. Bf4 {[%clk 0:00:11]}  f6 {[%clk 0:01:24]} 29. Ng2 {[%clk 0:00:08]}  g5 {[%clk 0:01:24]} 30. Be3 {[%clk 0:00:07]}  Rc4 {[%clk 0:01:25]} 31. Rc1 {[%clk 0:00:06]}  Rxc1+ {[%clk 0:01:20]} 32. Bxc1 {[%clk 0:00:05]}  Bf8 {[%clk 0:01:13]} 33. Be3 {[%clk 0:00:05]}  Bd6 {[%clk 0:01:10]} 34. Bb6 {[%clk 0:00:05]}  Kf7 {[%clk 0:01:10]} 35. Ne3 {[%clk 0:00:03]}  Ke6 {[%clk 0:01:04]} 36. Nc4 {[%clk 0:00:03]}  Be7 {[%clk 0:01:03]} 37. Na5 {[%clk 0:00:02]}  Kd5 {[%clk 0:00:59]} 38. Kf1 {[%clk 0:00:02]}  f5 {[%clk 0:00:59]} 39. Ke2 {[%clk 0:00:02]}  Bd6 {[%clk 0:00:59]} 40. Ke3 {[%clk 0:00:02]}  f4+ {[%clk 0:00:59]} 41. gxf4 {[%clk 0:00:01]}  gxf4+ {[%clk 0:01:00]} 42. Ke2 {[%clk 0:00:01]}  Ba6+ {[%clk 0:00:59]} 43. Ke1 {[%clk 0:00:01]}  Rxb8 {[%clk 0:00:58]} 0-1


[Site "https://www.chess.com"]

[Event "Titled Tuesday Blitz March 01 Early 2022"]
[White "Panesar Vedant"]
[Black "Domingo Nunez, Alejandro"]
[WhiteFideId "35033018"]
[BlackFideId "22245561"]
[WhiteElo "1971"]
[BlackElo "2215"]
[Result "1-0"]
[Round "05"]
[TimeControl "180+1"]
[Date "2022.03.01"]
[WhiteClock "0:00:22"]
[BlackClock "0:00:09"]

1. e4 {[%clk 0:02:51]}  c6 {[%clk 0:02:55]} 2. d4 {[%clk 0:02:50]}  g6 {[%clk 0:02:53]} 3. Nf3 {[%clk 0:02:48]}  Bg7 {[%clk 0:02:54]} 4. Bd3 {[%clk 0:02:47]}  d6 {[%clk 0:02:53]} 5. c3 {[%clk 0:02:46]}  Nd7 {[%clk 0:02:52]} 6. O-O {[%clk 0:02:46]}  e5 {[%clk 0:02:52]} 7. Bg5 {[%clk 0:02:42]}  Ngf6 {[%clk 0:02:52]} 8. Nbd2 {[%clk 0:02:41]}  O-O {[%clk 0:02:52]} 9. Re1 {[%clk 0:02:41]}  Qc7 {[%clk 0:02:52]} 10. dxe5 {[%clk 0:02:39]}  dxe5 {[%clk 0:02:43]} 11. Qc2 {[%clk 0:02:39]}  h6 {[%clk 0:02:40]} 12. Bh4 {[%clk 0:02:38]}  Nc5 {[%clk 0:02:38]} 13. Bf1 {[%clk 0:02:38]}  Re8 {[%clk 0:02:37]} 14. b4 {[%clk 0:02:36]}  Ne6 {[%clk 0:02:35]} 15. Nc4 {[%clk 0:02:36]}  Nh5 {[%clk 0:02:24]} 16. Nfd2 {[%clk 0:02:32]}  Nef4 {[%clk 0:02:09]} 17. f3 {[%clk 0:02:28]}  Be6 {[%clk 0:02:03]} 18. Bf2 {[%clk 0:02:25]}  g5 {[%clk 0:01:54]} 19. Nb3 {[%clk 0:02:16]}  b6 {[%clk 0:01:50]} 20. a4 {[%clk 0:02:16]}  c5 {[%clk 0:01:03]} 21. bxc5 {[%clk 0:02:10]}  bxc5 {[%clk 0:01:03]} 22. Red1 {[%clk 0:01:56]}  Kf8 {[%clk 0:01:02]} 23. Nxc5 {[%clk 0:01:51]}  Kg8 {[%clk 0:00:59]} 24. Nxe6 {[%clk 0:01:47]}  Nxe6 {[%clk 0:01:00]} 25. Nd6 {[%clk 0:01:02]}  Red8 {[%clk 0:00:56]} 26. Nb5 {[%clk 0:00:58]}  Qb7 {[%clk 0:00:44]} 27. Rxd8+ {[%clk 0:00:53]}  Nxd8 {[%clk 0:00:45]} 28. Rd1 {[%clk 0:00:52]}  a6 {[%clk 0:00:43]} 29. Nd6 {[%clk 0:00:52]}  Qc6 {[%clk 0:00:43]} 30. Nf5 {[%clk 0:00:52]}  Bf8 {[%clk 0:00:43]} 31. Rd5 {[%clk 0:00:49]}  Nf4 {[%clk 0:00:36]} 32. Rd1 {[%clk 0:00:32]}  Nde6 {[%clk 0:00:33]} 33. g3 {[%clk 0:00:32]}  Ng6 {[%clk 0:00:33]} 34. Kg2 {[%clk 0:00:28]}  Rc8 {[%clk 0:00:32]} 35. c4 {[%clk 0:00:27]}  Kh7 {[%clk 0:00:28]} 36. Rd5 {[%clk 0:00:26]}  Nc7 {[%clk 0:00:22]} 37. Rd1 {[%clk 0:00:21]}  Ne6 {[%clk 0:00:22]} 38. Qb2 {[%clk 0:00:21]}  Bd6 {[%clk 0:00:20]} 39. Rxd6 {[%clk 0:00:21]}  Qxa4 {[%clk 0:00:18]} 40. c5 {[%clk 0:00:20]}  Qa5 {[%clk 0:00:16]} 41. Qd2 {[%clk 0:00:20]}  Qc7 {[%clk 0:00:15]} 42. Bxa6 {[%clk 0:00:19]}  Rf8 {[%clk 0:00:13]} 43. Rd7 {[%clk 0:00:19]}  Qc6 {[%clk 0:00:13]} 44. Bc4 {[%clk 0:00:19]}  Nxc5 {[%clk 0:00:12]} 45. Bxc5 {[%clk 0:00:20]}  Qxc5 {[%clk 0:00:13]} 46. Rxf7+ {[%clk 0:00:21]}  Rxf7 {[%clk 0:00:11]} 47. Bxf7 {[%clk 0:00:22]}  Nf8 {[%clk 0:00:11]} 48. Bd5 {[%clk 0:00:21]}  Qa3 {[%clk 0:00:10]} 49. h4 {[%clk 0:00:21]}  gxh4 {[%clk 0:00:09]} 50. Qxh6# {[%clk 0:00:22]} 1-0


[Site "https://www.chess.com"]

[Event "Titled Tuesday Blitz March 01 Early 2022"]
[White "Piesik, Piotr"]
[Black "Muhammed, Shuaau"]
[WhiteFideId "1136194"]
[BlackFideId "16700406"]
[WhiteElo "2232"]
[BlackElo "1674"]
[Result "1-0"]
[Round "05"]
[TimeControl "180+1"]
[Date "2022.03.01"]
[WhiteClock "0:00:30"]
[BlackClock "0:00:16"]

1. Nf3 {[%clk 0:02:41]}  g6 {[%clk 0:02:53]} 2. g3 {[%clk 0:02:41]}  Bg7 {[%clk 0:02:53]} 3. d4 {[%clk 0:02:41]}  Nf6 {[%clk 0:02:53]} 4. Bg2 {[%clk 0:02:42]}  O-O {[%clk 0:02:53]} 5. O-O {[%clk 0:02:42]}  d5 {[%clk 0:02:53]} 6. c4 {[%clk 0:02:42]}  c6 {[%clk 0:02:53]} 7. Nc3 {[%clk 0:02:43]}  Bf5 {[%clk 0:02:48]} 8. cxd5 {[%clk 0:02:42]}  Nxd5 {[%clk 0:02:46]} 9. Qb3 {[%clk 0:02:41]}  Nxc3 {[%clk 0:02:45]} 10. bxc3 {[%clk 0:02:42]}  Qb6 {[%clk 0:02:43]} 11. Nd2 {[%clk 0:02:39]}  Qxb3 {[%clk 0:02:43]} 12. axb3 {[%clk 0:02:40]}  e5 {[%clk 0:02:41]} 13. e3 {[%clk 0:02:27]}  Nd7 {[%clk 0:02:39]} 14. Ba3 {[%clk 0:02:21]}  Rfe8 {[%clk 0:02:34]} 15. Rfc1 {[%clk 0:02:21]}  a6 {[%clk 0:02:28]} 16. Nc4 {[%clk 0:02:19]}  exd4 {[%clk 0:02:16]} 17. cxd4 {[%clk 0:02:16]}  Be6 {[%clk 0:01:46]} 18. Na5 {[%clk 0:02:10]}  Rab8 {[%clk 0:01:42]} 19. Bd6 {[%clk 0:02:09]}  Rbc8 {[%clk 0:01:16]} 20. Nxb7 {[%clk 0:02:07]}  Bxb3 {[%clk 0:01:15]} 21. Rxa6 {[%clk 0:02:04]}  Bd5 {[%clk 0:01:14]} 22. Bf4 {[%clk 0:01:58]}  Bxg2 {[%clk 0:01:12]} 23. Kxg2 {[%clk 0:01:59]}  Bf8 {[%clk 0:01:10]} 24. Raxc6 {[%clk 0:01:55]}  Rxc6 {[%clk 0:01:09]} 25. Rxc6 {[%clk 0:01:56]}  Nb8 {[%clk 0:01:03]} 26. Bxb8 {[%clk 0:01:53]}  Rxb8 {[%clk 0:01:02]} 27. Rc7 {[%clk 0:01:53]}  Ra8 {[%clk 0:00:55]} 28. Nc5 {[%clk 0:01:49]}  Ra2 {[%clk 0:00:52]} 29. Nd3 {[%clk 0:01:46]}  Bd6 {[%clk 0:00:46]} 30. Rd7 {[%clk 0:01:44]}  Ra6 {[%clk 0:00:42]} 31. Kf3 {[%clk 0:01:39]}  Kf8 {[%clk 0:00:42]} 32. h3 {[%clk 0:01:38]}  Ke8 {[%clk 0:00:42]} 33. Rb7 {[%clk 0:01:38]}  h5 {[%clk 0:00:40]} 34. g4 {[%clk 0:01:38]}  h4 {[%clk 0:00:38]} 35. Ke4 {[%clk 0:01:33]}  Ra1 {[%clk 0:00:37]} 36. Kd5 {[%clk 0:01:25]}  Bh2 {[%clk 0:00:37]} 37. f4 {[%clk 0:01:18]}  g5 {[%clk 0:00:34]} 38. Ke4 {[%clk 0:01:11]}  gxf4 {[%clk 0:00:34]} 39. Nxf4 {[%clk 0:01:11]}  Bxf4 {[%clk 0:00:31]} 40. Kxf4 {[%clk 0:01:12]}  Rh1 {[%clk 0:00:31]} 41. Rb8+ {[%clk 0:01:11]}  Ke7 {[%clk 0:00:31]} 42. Rh8 {[%clk 0:01:12]}  Rxh3 {[%clk 0:00:31]} 43. e4 {[%clk 0:01:11]}  Rh1 {[%clk 0:00:31]} 44. Rh6 {[%clk 0:01:04]}  Kf8 {[%clk 0:00:28]} 45. g5 {[%clk 0:01:02]}  Ke7 {[%clk 0:00:28]} 46. d5 {[%clk 0:01:01]}  Kf8 {[%clk 0:00:27]} 47. Kg4 {[%clk 0:00:55]}  Re1 {[%clk 0:00:25]} 48. Kf5 {[%clk 0:00:53]}  Rf1+ {[%clk 0:00:23]} 49. Ke5 {[%clk 0:00:53]}  Rh1 {[%clk 0:00:23]} 50. g6 {[%clk 0:00:44]}  fxg6 {[%clk 0:00:18]} 51. Rxg6 {[%clk 0:00:45]}  h3 {[%clk 0:00:17]} 52. Rh6 {[%clk 0:00:44]}  h2 {[%clk 0:00:18]} 53. d6 {[%clk 0:00:37]}  Kg7 {[%clk 0:00:17]} 54. Rh3 {[%clk 0:00:37]}  Kf7 {[%clk 0:00:18]} 55. Rh4 {[%clk 0:00:33]}  Ke8 {[%clk 0:00:16]} 56. Ke6 {[%clk 0:00:32]}  Kf8 {[%clk 0:00:16]} 57. d7 {[%clk 0:00:31]}  Re1 {[%clk 0:00:15]} 58. d8=Q+ {[%clk 0:00:30]}  Kg7 {[%clk 0:00:16]} 1-0


[Site "https://www.chess.com"]

[Event "Titled Tuesday Blitz March 01 Early 2022"]
[White "Ponkratov, Pavel"]
[Black "Kretov, Evgenij"]
[WhiteFideId "4157800"]
[BlackFideId "4167821"]
[WhiteElo "2487"]
[BlackElo "2303"]
[Result "1-0"]
[Round "05"]
[TimeControl "180+1"]
[Date "2022.03.01"]
[WhiteClock "0:01:09"]
[BlackClock "0:00:07"]

1. c4 {[%clk 0:03:00]}  Nf6 {[%clk 0:02:56]} 2. Nc3 {[%clk 0:03:01]}  c5 {[%clk 0:02:56]} 3. Nf3 {[%clk 0:03:00]}  e6 {[%clk 0:02:56]} 4. d4 {[%clk 0:02:58]}  cxd4 {[%clk 0:02:56]} 5. Nxd4 {[%clk 0:02:59]}  a6 {[%clk 0:02:57]} 6. e4 {[%clk 0:02:58]}  Qc7 {[%clk 0:02:56]} 7. a3 {[%clk 0:02:58]}  Nc6 {[%clk 0:02:56]} 8. Be3 {[%clk 0:02:56]}  Ne5 {[%clk 0:02:53]} 9. Rc1 {[%clk 0:02:54]}  Bc5 {[%clk 0:02:49]} 10. Be2 {[%clk 0:02:52]}  O-O {[%clk 0:02:47]} 11. f4 {[%clk 0:02:45]}  Ng6 {[%clk 0:02:43]} 12. e5 {[%clk 0:02:45]}  Ne8 {[%clk 0:02:42]} 13. Ne4 {[%clk 0:02:44]}  b6 {[%clk 0:02:32]} 14. b4 {[%clk 0:02:42]}  Be7 {[%clk 0:02:32]} 15. O-O {[%clk 0:02:35]}  Bb7 {[%clk 0:02:32]} 16. Qc2 {[%clk 0:02:29]}  f5 {[%clk 0:02:30]} 17. Nd2 {[%clk 0:02:22]}  Rc8 {[%clk 0:02:11]} 18. Qa2 {[%clk 0:02:19]}  Ba8 {[%clk 0:01:41]} 19. N2f3 {[%clk 0:02:18]}  Nh4 {[%clk 0:01:37]} 20. Nxh4 {[%clk 0:02:17]}  Bxh4 {[%clk 0:01:37]} 21. c5 {[%clk 0:02:17]}  bxc5 {[%clk 0:01:35]} 22. Rxc5 {[%clk 0:02:16]}  Qb7 {[%clk 0:01:31]} 23. Bf3 {[%clk 0:02:17]}  Qb8 {[%clk 0:01:31]} 24. Nxe6 {[%clk 0:02:17]}  Rf7 {[%clk 0:01:16]} 25. Rxc8 {[%clk 0:01:59]}  Qxc8 {[%clk 0:01:15]} 26. Nd4 {[%clk 0:01:59]}  Bxf3 {[%clk 0:01:01]} 27. Nxf3 {[%clk 0:01:58]}  Bd8 {[%clk 0:01:00]} 28. Rc1 {[%clk 0:01:57]}  Qb7 {[%clk 0:01:00]} 29. e6 {[%clk 0:01:51]}  dxe6 {[%clk 0:00:55]} 30. Qxe6 {[%clk 0:01:46]}  Nc7 {[%clk 0:00:48]} 31. Qc4 {[%clk 0:01:38]}  Qd5 {[%clk 0:00:39]} 32. Ne5 {[%clk 0:01:32]}  Qxc4 {[%clk 0:00:38]} 33. Rxc4 {[%clk 0:01:31]}  Rf8 {[%clk 0:00:30]} 34. Bb6 {[%clk 0:01:25]}  Ne6 {[%clk 0:00:27]} 35. Bxd8 {[%clk 0:01:24]}  Rxd8 {[%clk 0:00:27]} 36. g3 {[%clk 0:01:25]}  h6 {[%clk 0:00:23]} 37. Rc6 {[%clk 0:01:24]}  Rd1+ {[%clk 0:00:23]} 38. Kf2 {[%clk 0:01:24]}  Nd4 {[%clk 0:00:23]} 39. Rxa6 {[%clk 0:01:24]}  Nc2 {[%clk 0:00:19]} 40. Ke2 {[%clk 0:01:22]}  Rh1 {[%clk 0:00:19]} 41. h4 {[%clk 0:01:21]}  Rh2+ {[%clk 0:00:17]} 42. Kd3 {[%clk 0:01:20]}  Ne1+ {[%clk 0:00:17]} 43. Kc4 {[%clk 0:01:20]}  Rh3 {[%clk 0:00:17]} 44. b5 {[%clk 0:01:16]}  Rxg3 {[%clk 0:00:15]} 45. h5 {[%clk 0:01:16]}  Kf8 {[%clk 0:00:12]} 46. b6 {[%clk 0:01:13]}  Nf3 {[%clk 0:00:06]} 47. Nxf3 {[%clk 0:01:08]}  Rxf3 {[%clk 0:00:07]} 48. b7 {[%clk 0:01:09]}  Rxf4+ {[%clk 0:00:07]} 49. Kc5 {[%clk 0:01:09]} 1-0


[Site "https://www.chess.com"]

[Event "Titled Tuesday Blitz March 01 Early 2022"]
[White "Prieto Aranguren, Alain"]
[Black "Politov, Pavel Y."]
[WhiteFideId "2268906"]
[BlackFideId "24110515"]
[WhiteElo "2235"]
[BlackElo "2090"]
[Result "0-1"]
[Round "05"]
[TimeControl "180+1"]
[Date "2022.03.01"]
[WhiteClock "0:00:05"]
[BlackClock "0:00:22"]

1. d4 {[%clk 0:02:52]}  d5 {[%clk 0:02:59]} 2. c4 {[%clk 0:01:45]}  dxc4 {[%clk 0:03:00]} 3. e3 {[%clk 0:01:44]}  e6 {[%clk 0:03:00]} 4. Bxc4 {[%clk 0:01:43]}  c5 {[%clk 0:03:01]} 5. Nf3 {[%clk 0:01:43]}  a6 {[%clk 0:03:01]} 6. O-O {[%clk 0:01:43]}  Nf6 {[%clk 0:03:01]} 7. Nc3 {[%clk 0:01:43]}  Nc6 {[%clk 0:02:59]} 8. dxc5 {[%clk 0:01:41]}  Bxc5 {[%clk 0:02:59]} 9. Qxd8+ {[%clk 0:01:41]}  Kxd8 {[%clk 0:03:00]} 10. b3 {[%clk 0:01:39]}  b6 {[%clk 0:02:59]} 11. Bb2 {[%clk 0:01:39]}  Bb7 {[%clk 0:02:59]} 12. Rac1 {[%clk 0:01:38]}  Bd6 {[%clk 0:02:38]} 13. Rfd1 {[%clk 0:01:37]}  Ke7 {[%clk 0:02:36]} 14. Be2 {[%clk 0:01:33]}  Rhd8 {[%clk 0:02:25]} 15. Na4 {[%clk 0:01:29]}  b5 {[%clk 0:02:13]} 16. Nc5 {[%clk 0:01:26]}  Bxc5 {[%clk 0:02:09]} 17. Rxc5 {[%clk 0:01:26]}  Rxd1+ {[%clk 0:02:08]} 18. Bxd1 {[%clk 0:01:26]}  Rd8 {[%clk 0:01:59]} 19. Be2 {[%clk 0:01:21]}  Ne4 {[%clk 0:01:56]} 20. Rc1 {[%clk 0:01:19]}  f6 {[%clk 0:01:56]} 21. Kf1 {[%clk 0:01:19]}  Kf7 {[%clk 0:01:41]} 22. Nd4 {[%clk 0:01:15]}  Nxd4 {[%clk 0:01:40]} 23. Bxd4 {[%clk 0:01:09]}  Rd7 {[%clk 0:01:39]} 24. Ke1 {[%clk 0:01:03]}  e5 {[%clk 0:01:38]} 25. Bb6 {[%clk 0:00:56]}  Ke6 {[%clk 0:01:36]} 26. Rc7 {[%clk 0:00:54]}  Rxc7 {[%clk 0:01:35]} 27. Bxc7 {[%clk 0:00:54]}  Nc3 {[%clk 0:01:35]} 28. a4 {[%clk 0:00:49]}  bxa4 {[%clk 0:01:33]} 29. bxa4 {[%clk 0:00:48]}  Nxa4 {[%clk 0:01:15]} 30. Bc4+ {[%clk 0:00:45]}  Kd7 {[%clk 0:01:12]} 31. Ba5 {[%clk 0:00:38]}  Bxg2 {[%clk 0:01:10]} 32. Bxa6 {[%clk 0:00:34]}  Nc5 {[%clk 0:01:06]} 33. Bc4 {[%clk 0:00:32]}  Be4 {[%clk 0:00:58]} 34. Kf1 {[%clk 0:00:29]}  Bd3+ {[%clk 0:00:57]} 35. Bxd3 {[%clk 0:00:29]}  Nxd3 {[%clk 0:00:58]} 36. Ke2 {[%clk 0:00:25]}  e4 {[%clk 0:00:55]} 37. Bb6 {[%clk 0:00:23]}  Ke6 {[%clk 0:00:54]} 38. Bd4 {[%clk 0:00:23]}  Kf5 {[%clk 0:00:49]} 39. Kf1 {[%clk 0:00:19]}  Kg4 {[%clk 0:00:44]} 40. Kg2 {[%clk 0:00:19]}  Ne1+ {[%clk 0:00:40]} 41. Kf1 {[%clk 0:00:19]}  Nf3 {[%clk 0:00:40]} 42. Bc5 {[%clk 0:00:15]}  Kh3 {[%clk 0:00:39]} 43. Bd6 {[%clk 0:00:11]}  Nxh2+ {[%clk 0:00:39]} 44. Kg1 {[%clk 0:00:12]}  Nf3+ {[%clk 0:00:39]} 45. Kf1 {[%clk 0:00:12]}  g5 {[%clk 0:00:36]} 46. Bg3 {[%clk 0:00:10]}  Kg4 {[%clk 0:00:32]} 47. Kg2 {[%clk 0:00:10]}  h5 {[%clk 0:00:31]} 48. Bd6 {[%clk 0:00:10]}  h4 {[%clk 0:00:29]} 49. Be7 {[%clk 0:00:07]}  h3+ {[%clk 0:00:27]} 50. Kh1 {[%clk 0:00:07]}  f5 {[%clk 0:00:24]} 51. Bxg5 {[%clk 0:00:06]}  Nxg5 {[%clk 0:00:25]} 52. f4 {[%clk 0:00:06]}  exf3 {[%clk 0:00:22]} 53. e4 {[%clk 0:00:04]}  f2 {[%clk 0:00:21]} 54. Kh2 {[%clk 0:00:04]}  f1=Q {[%clk 0:00:21]} 55. exf5 {[%clk 0:00:05]}  Qg2# {[%clk 0:00:22]} 0-1


[Site "https://www.chess.com"]

[Event "Titled Tuesday Blitz March 01 Early 2022"]
[White "Romanchuk, Viktor"]
[Black "Miszler, Levente"]
[WhiteFideId "14109271"]
[BlackFideId "763276"]
[WhiteElo "2242"]
[BlackElo "1966"]
[Result "0-1"]
[Round "05"]
[TimeControl "180+1"]
[Date "2022.03.01"]
[WhiteClock "0:01:50"]
[BlackClock "0:01:02"]

1. d4 {[%clk 0:03:00]}  e6 {[%clk 0:02:58]} 2. c4 {[%clk 0:03:00]}  Nf6 {[%clk 0:02:56]} 3. Nc3 {[%clk 0:03:00]}  d5 {[%clk 0:02:55]} 4. Nf3 {[%clk 0:02:59]}  Be7 {[%clk 0:02:53]} 5. Bf4 {[%clk 0:02:58]}  c6 {[%clk 0:02:49]} 6. e3 {[%clk 0:02:58]}  O-O {[%clk 0:02:48]} 7. Qc2 {[%clk 0:02:58]}  Nbd7 {[%clk 0:02:48]} 8. cxd5 {[%clk 0:02:58]}  exd5 {[%clk 0:02:47]} 9. Bd3 {[%clk 0:02:57]}  Re8 {[%clk 0:02:46]} 10. O-O {[%clk 0:02:56]}  Nf8 {[%clk 0:02:46]} 11. h3 {[%clk 0:02:57]}  Ng6 {[%clk 0:02:46]} 12. Bh2 {[%clk 0:02:57]}  Bd6 {[%clk 0:02:45]} 13. Bxd6 {[%clk 0:02:56]}  Qxd6 {[%clk 0:02:44]} 14. Rab1 {[%clk 0:02:57]}  Ne7 {[%clk 0:02:26]} 15. b4 {[%clk 0:02:54]}  g6 {[%clk 0:02:20]} 16. Na4 {[%clk 0:02:51]}  Bf5 {[%clk 0:02:11]} 17. Bxf5 {[%clk 0:02:48]}  Nxf5 {[%clk 0:02:12]} 18. Nc5 {[%clk 0:02:48]}  Ne4 {[%clk 0:02:12]} 19. Nxb7 {[%clk 0:02:47]}  Qe7 {[%clk 0:02:05]} 20. Na5 {[%clk 0:02:44]}  Ng5 {[%clk 0:01:43]} 21. Nxg5 {[%clk 0:02:36]}  Qxg5 {[%clk 0:01:44]} 22. Nxc6 {[%clk 0:02:36]}  Rac8 {[%clk 0:01:18]} 23. b5 {[%clk 0:02:35]}  Nh4 {[%clk 0:01:11]} 24. f4 {[%clk 0:02:34]}  Qg3 {[%clk 0:01:10]} 25. Qf2 {[%clk 0:02:29]}  Qxe3 {[%clk 0:01:08]} 26. Nxa7 {[%clk 0:02:21]}  Rc2 {[%clk 0:01:03]} 27. Qxe3 {[%clk 0:02:15]}  Rxg2+ {[%clk 0:01:02]} 28. Kh1 {[%clk 0:02:14]}  Rxe3 {[%clk 0:01:03]} 29. Rb3 {[%clk 0:02:13]}  Ree2 {[%clk 0:01:02]} 30. Rff3 {[%clk 0:01:51]}  Rh2+ {[%clk 0:01:01]} 31. Kg1 {[%clk 0:01:50]}  Reg2+ {[%clk 0:01:02]} 32. Kf1 {[%clk 0:01:50]}  Rh1# {[%clk 0:01:02]} 0-1


[Site "https://www.chess.com"]

[Event "Titled Tuesday Blitz March 01 Early 2022"]
[White "Samant Aditya S"]
[Black "Eynullayev, Atilla"]
[WhiteFideId "35080580"]
[BlackFideId "13413570"]
[WhiteElo "1916"]
[BlackElo "1979"]
[Result "1-0"]
[Round "05"]
[TimeControl "180+1"]
[Date "2022.03.01"]
[WhiteClock "0:00:29"]
[BlackClock "0:00:04"]

1. d4 {[%clk 0:03:00]}  Nf6 {[%clk 0:02:59]} 2. c4 {[%clk 0:03:00]}  e6 {[%clk 0:02:59]} 3. Nf3 {[%clk 0:03:00]}  d5 {[%clk 0:02:59]} 4. Nc3 {[%clk 0:02:59]}  dxc4 {[%clk 0:02:59]} 5. e4 {[%clk 0:02:48]}  b5 {[%clk 0:02:59]} 6. e5 {[%clk 0:02:45]}  Nd5 {[%clk 0:03:00]} 7. Nxb5 {[%clk 0:02:45]}  Nb6 {[%clk 0:03:00]} 8. Be2 {[%clk 0:02:33]}  Nc6 {[%clk 0:02:58]} 9. O-O {[%clk 0:02:31]}  Be7 {[%clk 0:02:58]} 10. Qd2 {[%clk 0:02:19]}  Bb7 {[%clk 0:02:58]} 11. Qf4 {[%clk 0:02:14]}  Qd7 {[%clk 0:02:58]} 12. Nc3 {[%clk 0:02:11]}  Nb4 {[%clk 0:02:45]} 13. Qg3 {[%clk 0:02:06]}  Rg8 {[%clk 0:01:55]} 14. b3 {[%clk 0:02:02]}  cxb3 {[%clk 0:01:12]} 15. axb3 {[%clk 0:02:03]}  a6 {[%clk 0:01:12]} 16. Bd2 {[%clk 0:01:55]}  O-O-O {[%clk 0:01:12]} 17. Rfc1 {[%clk 0:01:53]}  Kb8 {[%clk 0:01:11]} 18. Na4 {[%clk 0:01:48]}  g5 {[%clk 0:00:37]} 19. Nc5 {[%clk 0:01:19]}  Bxc5 {[%clk 0:00:38]} 20. dxc5 {[%clk 0:01:20]}  Bxf3 {[%clk 0:00:25]} 21. cxb6 {[%clk 0:01:11]}  cxb6 {[%clk 0:00:22]} 22. Bxb4 {[%clk 0:00:53]}  Bxe2 {[%clk 0:00:22]} 23. Bd6+ {[%clk 0:00:44]}  Ka8 {[%clk 0:00:21]} 24. Qe3 {[%clk 0:00:40]}  Bb5 {[%clk 0:00:04]} 25. Qe4+ {[%clk 0:00:40]}  Qb7 {[%clk 0:00:04]} 26. Qb4 {[%clk 0:00:30]}  Ka7 {[%clk 0:00:03]} 27. Qxb5 {[%clk 0:00:29]}  Rxd6 {[%clk 0:00:04]} 28. exd6 {[%clk 0:00:29]} 1-0


[Site "https://www.chess.com"]

[Event "Titled Tuesday Blitz March 01 Early 2022"]
[White "Samarth, J Rao"]
[Black "Garagulya, Konstantin"]
[WhiteFideId "46652370"]
[BlackFideId "4128931"]
[WhiteElo "1514"]
[BlackElo "2329"]
[Result "1-0"]
[Round "05"]
[TimeControl "180+1"]
[Date "2022.03.01"]
[WhiteClock "0:01:49"]
[BlackClock "0:02:00"]

1. d4 {[%clk 0:02:45]}  Nf6 {[%clk 0:02:59]} 2. c4 {[%clk 0:02:42]}  e6 {[%clk 0:02:58]} 3. Nf3 {[%clk 0:02:39]}  d5 {[%clk 0:02:59]} 4. e3 {[%clk 0:02:36]}  Be7 {[%clk 0:02:55]} 5. Nc3 {[%clk 0:02:37]}  O-O {[%clk 0:02:55]} 6. Qc2 {[%clk 0:02:35]}  b6 {[%clk 0:02:54]} 7. cxd5 {[%clk 0:02:32]}  exd5 {[%clk 0:02:54]} 8. Bd3 {[%clk 0:02:31]}  c5 {[%clk 0:02:54]} 9. O-O {[%clk 0:02:28]}  Nc6 {[%clk 0:02:50]} 10. Rd1 {[%clk 0:02:21]}  Nb4 {[%clk 0:02:48]} 11. Qe2 {[%clk 0:02:12]}  Nxd3 {[%clk 0:02:46]} 12. Qxd3 {[%clk 0:02:12]}  c4 {[%clk 0:02:47]} 13. Qe2 {[%clk 0:02:12]}  a6 {[%clk 0:02:42]} 14. e4 {[%clk 0:02:11]}  dxe4 {[%clk 0:02:41]} 15. Nxe4 {[%clk 0:02:12]}  b5 {[%clk 0:02:42]} 16. d5 {[%clk 0:02:06]}  Nxd5 {[%clk 0:02:20]} 17. Neg5 {[%clk 0:02:02]}  Bb7 {[%clk 0:02:06]} 18. Qe4 {[%clk 0:01:51]}  h6 {[%clk 0:02:00]} 19. Qh7# {[%clk 0:01:49]} 1-0


[Site "https://www.chess.com"]